[Event "Chinese League Division-A 2024"]
[Site "Fuling Chongqing"]
[Date "2024.07.04"]
[Round "8.12"]
[White "Kong, Xiangrui"]
[Black "Nie, Xinyang"]
[Result "1-0"]
[ECO "C43"]
[WhiteElo "2439"]
[BlackElo "2395"]
[Annotator "TA"]
[PlyCount "111"]
[EventDate "2024.06.28"]
[EventType "team-tourn"]
[EventCountry "CHN"]
[SourceTitle "playchess.com"]
[Source "ChessBase"]
[SourceQuality "1"]
[TimeControl "40/5400+30:1800+30"]

{[%evp 12,111,0,0,0,0,11,0,0,0,0,2,5,13,3,10,15,26,23,31,38,21,31,0,78,82,75,71,91,103,101,103,109,105,97,93,108,93,107,79,160,136,136,133,212,208,216,210,214,200,209,0,194,204,203,196,181,164,204,172,175,118,219,219,218,208,210,208,206,193,309,298,393,393,386,386,386,379,579,553,528,489,1104,1100,1056,1066,1028,1008,984,483,927,959,1411,1386,1165,911,784,727,1388,1243,2403,1056]} 1. e4 {[%emt 0:00:02]} e5 {[%emt 0:00:04]} 2. Nf3 {[%emt 0:00:04]} Nf6 {[%emt 0:00:02]} 3. d4 {[%emt 0:00:13]} Nxe4 {[%emt 0:00:04]} 4. Bd3 {[%emt 0:00:07]} d5 {[%emt 0:00:05]} 5. Nxe5 {[%emt 0:00:06]} Nd7 {[%emt 0:00:03]} 6. O-O {[%emt 0:00:32]} Nxe5 {[%emt 0:04:09]} 7. dxe5 {[%emt 0:00:03]} Nc5 {[%emt 0:01:57]} 8. Be3 {[%emt 0:00:14]} Be7 {[%emt 0:05:12]} 9. f4 {[%emt 0:01:04]} Nxd3 {[%emt 0:02:43] The position is equal.} 10. Qxd3 {[%emt 0:02:54]} g6 {[%emt 0:00:50]} 11. Nc3 {[%emt 0:03:04][%cal Bb1c3,Bc3e2,Be2g3][%mdl 32]} c6 {[%emt 0:00:08]} 12. Ne2 {[%emt 0:03:03]} O-O {[%emt 0:01:59]} 13. Ng3 {[%emt 0:28:34]} f5 {[%emt 0:14:51]} 14. exf6 {[%emt 0:01:40]} Bxf6 {[%emt 0:00:11]} 15. f5 {[%emt 0:15:40]} Bxf5 {[%emt 0:00:04]} 16. Nxf5 {[%emt 0:00:04]} gxf5 {[%emt 0:00:03]} 17. Rxf5 {[%emt 0:01:58] Black must now prevent Bc5.} Qd7 {[%emt 0:03:16]} (17... Bxb2 $11 {remains equal.} 18. Rg5+ Qxg5 19. Bxg5 Bxa1) 18. Raf1 $16 {[%emt 0:02:10]} Bg7 {[%emt 0:07:50]} 19. Rxf8+ {[%emt 0:03:26]} Rxf8 {[%emt 0:05:34]} 20. Rxf8+ {[%emt 0:00:09]} Bxf8 {[%emt 0:02:12]} 21. Bxa7 {[%emt 0:00:15][%mdl 4096] Endgame. KQB-KQB} Bg7 {[%emt 0:00:23]} 22. Bd4 {[%emt 0:05:59] aiming for Qg3.} Bxd4+ {[%emt 0:02:11]} 23. Qxd4 {[%emt 0:00:02] KQ-KQ} Qe6 {[%emt 0:00:48]} 24. Kf1 {[%emt 0:02:29] Dodges Qe1+} b5 {[%emt 0:02:30]} 25. Qf4 {[%emt 0:03:15] Prevents Qh6} d4 {[%emt 0:03:55]} 26. Qxd4 {[%emt 0:00:56]} Qxa2 {[%emt 0:00:06]} 27. Ke2 {[%emt 0:04:17]} Qb1 {[%emt 0:01:46]} (27... Qe6+ $16 {is a better defense.} 28. Kd3 Qg6+ 29. Qe4 Qd6+ 30. Qd4 Qg6+ 31. Kc3 (31. Qe4 Qd6+ 32. Ke3 c5 $16) 31... Qxg2) 28. Kd2 $18 {[%emt 0:00:36]} Qh1 {[%emt 0:03:20]} 29. Qg4+ {[%emt 0:01:57]} Kf7 {[%emt 0:00:13]} 30. Qf3+ {[%emt 0:01:30]} Kg8 {[%emt 0:00:30]} 31. Qg4+ {[%emt 0:09:31]} (31. Qxc6 Qxh2 32. Qd5+ (32. Qxb5 Qxg2+ 33. Qe2 Qg5+ 34. Qe3 Qd5+ 35. Kc3 Qc6+ 36. Kb3 Qb5+ 37. Ka2 h5 $14) 32... Kg7) 31... Kf7 $1 {[%emt 0:00:05]} 32. Qd7+ {[%emt 0:01:32]} Kg8 {[%emt 0:00:04]} 33. Qc8+ {[%emt 0:01:35]} (33. Qxc6 Qxh2 34. Qe4 (34. Qxb5 Qxg2+ 35. Kc3 Qg7+ 36. Kb3 Qf7+ 37. c4 h5 $14) 34... Qg3) 33... Kg7 {[%emt 0:00:06]} 34. Qc7+ {[%emt 0:00:31]} (34. Qxc6 Qxh2 35. Kc3 (35. Qxb5 Qxg2+ 36. Kc3 Qf3+ 37. Qd3 Qc6+ 38. Kd2 Qg2+ 39. Kc3 Qc6+ 40. Qc4 Qf3+ 41. Qd3 Qc6+ $11) 35... Qe5+ 36. Kb3 Qe2 $14) 34... Kg8 {[%emt 0:00:05]} 35. Qg3+ {[%emt 0:01:07]} (35. Qxc6 Qxh2 36. Qc8+ (36. Qxb5 Qxg2+ 37. Kc3 Qg7+ 38. Kb3 Qf7+ 39. c4 h5 $11) 36... Kg7) 35... Kf7 {[%emt 0:00:06]} 36. Qf2+ {[%emt 0:02:36]} (36. Kc3 $18) 36... Kg8 {[%emt 0:00:05]} (36... Ke6 $16) 37. h3 $1 {[%emt 0:01:03]} Qh2 {[%emt 0:00:05] [#]} 38. Kc3 $1 {[%emt 0:03:37]} Qe5+ {[%emt 0:00:51]} 39. Qd4 {[%emt 0:00:14]} Qe1+ {[%emt 0:01:53] [#]} 40. Kb3 $1 {[%emt 0:00:00]} Qe6+ {[%emt 0:00:00]} (40... Qa5 $142 41. Qg4+ Kf7) 41. Kb4 {[%emt 0:04:06] Qg4+ is the strong threat.} Qa2 {[%emt 0:00:33]} 42. Qd3 {[%emt 0:02:39] Hoping for Qb3+.} Qa7 {[%emt 0:03:55]} 43. Qd8+ {[%emt 0:05:50]} Kf7 {[%emt 0:00:31]} 44. b3 {[%emt 0:00:48] Wards off Qa4+. Active counter play!} Ke6 {[%emt 0:00:04]} (44... h6 $142 45. Qd6 Qb6) 45. Qg8+ {[%emt 0:01:34] White is clearly winning.} Kd6 {[%emt 0:00:07]} 46. Qf8+ {[%emt 0:00:08]} Kd5 {[%emt 0:00:24]} (46... Ke6 $142 47. Qh6+ Kd5 48. c4+ bxc4) 47. Qf5+ {[%emt 0:00:20]} Kd6 {[%emt 0:00:03]} 48. Qf6+ {[%emt 0:00:03]} Kd5 {[%emt 0:00:16]} 49. c4+ {[%emt 0:00:29]} bxc4 {[%emt 0:00:04]} 50. bxc4+ {[%emt 0:00:02]} Ke4 {[%emt 0:00:04]} 51. Qxc6+ {[%emt 0:00:24]} Kf4 {[%emt 0:00:03]} 52. Qd6+ {[%emt 0:01:42]} Ke4 {[%emt 0:00:03]} 53. Qd5+ {[%emt 0:02:04]} Kf4 {[%emt 0:00:04]} 54. c5 {[%emt 0:00:57] Qd6+ would now be deadly.} Ke3 {[%emt 0:00:30]} 55. g4 {[%emt 0:01:03]} Qa6 {[%emt 0:00:49]} 56. g5 {[%emt 0:01:32] Weighted Error Value: White=0.10 (very precise) /Black=0.24 (precise) .  Mistake:       	White=1     	Black=7      Inaccurate:     	White=1     	Black=2      OK:         	White=19    	Black=15     Best:        	White=4     	Black=1      Strong:       	White=3     	Black=1} (56. c6 $142 Kf2 57. Qb5) 1-0

[Event "Chinese League Division-A 2024"]
[Site "Fuling Chongqing"]
[Date "2024.07.04"]
[Round "8.13"]
[White "Peng, Xiongjian"]
[Black "Ma, Qun"]
[Result "1/2-1/2"]
[ECO "B12"]
[WhiteElo "2521"]
[BlackElo "2643"]
[Annotator "TA"]
[PlyCount "91"]
[EventDate "2024.06.28"]
[EventType "team-tourn"]
[EventCountry "CHN"]
[SourceTitle "playchess.com"]
[Source "ChessBase"]
[SourceQuality "1"]
[TimeControl "40/5400+30:1800+30"]

{[%evp 11,91,0,0,-14,0,-5,-2,-16,5,16,6,20,14,21,29,25,20,15,32,11,24,20,45,14,0,0,0,0,29,0,83,38,40,45,71,77,66,66,93,79,122,85,91,47,50,62,101,101,101,101,135,134,120,81,83,12,18,12,8,17,13,0,0,0,0,0,0,0,0,0,0,0,0,0,0,0,0,0,0,0,0,0]} 1. e4 {[%emt 0:00:04]} c6 {[%emt 0:00:11][%cal Bc7c6,Bc6c5][%mdl 32]} 2. d4 {[%emt 0:00:44]} d5 {[%emt 0:00:08]} 3. e5 {[%emt 0:00:04]} Bf5 {[%emt 0:00:18]} 4. Nf3 {[%emt 0:02:59]} e6 {[%emt 0:00:11]} 5. Be2 {[%emt 0:00:16]} c5 {[%emt 0:00:05]} 6. c4 {[%emt 0:13:08]} dxc4 {[%emt 0:13:10]} 7. Nc3 {[%emt 0:01:18]} Nc6 {[%emt 0:02:54][%cal Rc5d4]} 8. Be3 {[%emt 0:00:20]} cxd4 {[%emt 0:03:48]} 9. Nxd4 {[%emt 0:00:05]} Nge7 {[%emt 0:00:49]} (9... Nxd4 {simplifies} 10. Qxd4 Qxd4 11. Bxd4 Ne7) 10. Qa4 {[%emt 0:09:59][%cal Oe1c1] And now 0-0-0! would win.} a6 {[%emt 0:02:17] ...b5 would now be deadly.} 11. O-O-O {[%emt 0:05:34]} Qa5 {[%emt 0:03:18]} 12. Nxf5 {[%emt 0:04:29]} Nxf5 {[%emt 0:01:45]} 13. Qxa5 {[%emt 0:00:08]} Nxa5 {[%emt 0:00:07]} 14. Bb6 {[%emt 0:00:02]} Bb4 {[%emt 0:17:19]} 15. f4 {[%emt 0:04:34][%mdl 1024] White has compensation.} Nc6 {[%emt 0:19:25]} 16. Bf3 {[%emt 0:00:49]} Nfe7 {[%emt 0:00:14]} 17. a3 {[%emt 0:09:55]} Ba5 {[%emt 0:01:47]} 18. Bc5 {[%emt 0:00:19] This pair of bishops is nice.} Bxc3 {[%emt 0:02:11]} 19. bxc3 {[%emt 0:00:09]} Rd8 {[%emt 0:00:04]} 20. Kc2 {[%emt 0:11:02]} (20. Rxd8+ {simplifies} Nxd8 21. Rd1 h6 22. g3) 20... Rd7 {[%emt 0:06:50]} (20... Nd5 $11 {keeps the balance.}) 21. a4 {[%emt 0:05:30]} (21. Rxd7 {simplifies} Kxd7 22. Bxe7 Nxe7 23. Bxb7 a5 24. Rd1+) 21... Nd5 {[%emt 0:17:44]} 22. Bxd5 {[%emt 0:10:30]} Rxd5 {[%emt 0:00:06]} 23. Rxd5 {[%emt 0:00:31]} exd5 $14 {[%emt 0:00:01][%mdl 4096] Endgame. KRB-KRN} 24. Rb1 $1 {[%emt 0:00:55]} Na5 {[%emt 0:00:08]} 25. Rb6 {[%emt 0:02:33]} Kd7 {[%emt 0:00:01]} 26. Rd6+ {[%emt 0:00:44]} Kc8 {[%emt 0:00:06]} 27. Bb6 {[%emt 0:00:11] White is more active.} Nc6 {[%emt 0:00:33]} 28. Rxd5 {[%emt 0:01:06]} h5 {[%emt 0:03:10]} 29. Kd2 {[%emt 0:01:05]} Re8 {[%emt 0:00:37]} 30. Ke3 {[%emt 0:04:42]} f6 {[%emt 0:02:00][%cal Rf6e5]} 31. Ke4 {[%emt 0:00:22]} g6 {[%emt 0:01:18]} 32. g3 {[%emt 0:01:34]} Re7 {[%emt 0:01:16]} 33. Rd6 {[%emt 0:04:16]} (33. Bc5 $16 f5+ 34. Kf3) 33... fxe5 $11 {[%emt 0:00:15] The position is equal.} 34. Rxg6 {[%emt 0:00:09]} exf4+ {[%emt 0:00:03]} 35. Kxf4 {[%emt 0:00:04]} Re2 {[%emt 0:01:46]} 36. Rg7 {[%emt 0:00:08] Threatens to win with Rc7+.} Rxh2 {[%emt 0:01:08]} 37. Rc7+ {[%emt 0:00:09]} Kb8 {[%emt 0:00:01]} 38. Rh7 {[%emt 0:00:07] [#] White wants to mate with Rh8+.} Kc8 {[%emt 0:00:08]} 39. g4 {[%emt 0:00:04]} Rb2 {[%emt 0:00:15]} 40. a5 {[%emt 0:00:00]} hxg4 {[%emt 0:00:00]} 41. Rc7+ {[%emt 0:03:50]} Kb8 {[%emt 0:00:04][%cal Oc6a5] [#] White must now prevent ...Nxa5!} 42. Rg7 {[%emt 0:00:24] Rg8+ would kill now.} Kc8 {[%emt 0:00:12]} 43. Rc7+ {[%emt 0:00:23]} Kb8 {[%emt 0:00:01][%cal Oc6a5] Strongly threatening ...Nxa5!} 44. Rg7 {[%emt 0:00:06]} Kc8 {[%emt 0:00:02]} 45. Rc7+ {[%emt 0:00:36]} Kb8 {[%emt 0:00:02][%cal Oc6a5] ...Nxa5! is the strong threat.} 46. Rg7 {[%emt 0:01:12] Weighted Error Value: White=0.11 (very precise) /Black=0.11 (very precise) .  Mistake:       	White=1     	Black=1      Inaccurate:     	White=6     	Black=5      OK:         	White=21    	Black=12     Best:        	White=1     	Black=9      Strong:       	White=1     	---} 1/2-1/2

[Event "Chinese League Division-A 2024"]
[Site "Fuling Chongqing"]
[Date "2024.07.04"]
[Round "8.14"]
[White "Zhai, Mo"]
[Black "Sun, Fanghui"]
[Result "1-0"]
[ECO "D85"]
[WhiteElo "2348"]
[BlackElo "2115"]
[Annotator "RC"]
[PlyCount "151"]
[EventDate "2024.06.28"]
[EventType "team-tourn"]
[EventCountry "CHN"]
[SourceTitle "playchess.com"]
[Source "ChessBase"]
[SourceQuality "1"]
[TimeControl "40/5400+30:1800+30"]

1. d4 {[%emt 0:00:10]} Nf6 {[%emt 0:00:35]} 2. c4 {[%emt 0:00:09]} g6 {[%emt 0:00:27]} 3. Nc3 {[%emt 0:00:32]} d5 {[%emt 0:00:08]} 4. cxd5 {[%emt 0:00:20]} Nxd5 {[%emt 0:00:05]} 5. e4 {[%emt 0:00:30]} Nxc3 {[%emt 0:00:05]} 6. bxc3 {[%emt 0:00:04]} Bg7 {[%emt 0:00:05]} 7. Ba3 {[%emt 0:00:31]} Nd7 {[%emt 0:01:22]} 8. Nf3 {[%emt 0:00:40]} c5 {[%emt 0:01:23]} 9. Qb3 {[%emt 0:00:09]} O-O {[%emt 0:08:31]} 10. Be2 {[%emt 0:01:45]} cxd4 {[%emt 0:05:13]} 11. cxd4 {[%emt 0:00:09]} Nf6 {[%emt 0:00:07]} 12. e5 {[%emt 0:01:40]} Be6 {[%emt 0:16:31]} 13. Qxb7 {[%emt 0:08:19]} Nd5 {[%emt 0:00:28]} 14. O-O {[%emt 0:01:02]} Nc3 {[%emt 0:09:10]} 15. Qa6 {[%emt 0:28:09]} Bd5 {[%emt 0:12:49]} 16. Bc5 {[%emt 0:04:46]} Bh6 {[%emt 0:05:07]} 17. Rfe1 {[%emt 0:06:25]} Qd7 {[%emt 0:02:54]} 18. Qd3 {[%emt 0:10:08]} Na4 {[%emt 0:01:56]} 19. Bb4 {[%emt 0:02:31]} Rfc8 {[%emt 0:08:05]} 20. Qa3 {[%emt 0:07:09]} e6 {[%emt 0:05:47]} 21. Ba6 {[%emt 0:05:15]} Rcb8 {[%emt 0:04:16]} 22. Bf1 {[%emt 0:10:59]} Bxf3 {[%emt 0:05:50]} 23. Qxf3 {[%emt 0:00:14]} Qxd4 {[%emt 0:00:57]} 24. Bd6 {[%emt 0:00:54]} Rd8 {[%emt 0:01:09]} 25. Ba6 {[%emt 0:05:17]} Nc5 {[%emt 0:02:42]} 26. Bb5 {[%emt 0:01:33]} Rac8 {[%emt 0:00:44]} 27. Be7 {[%emt 0:01:22]} Rd5 {[%emt 0:01:00]} 28. Rad1 {[%emt 0:00:43]} Qb4 {[%emt 0:00:13]} 29. Bf1 {[%emt 0:00:27]} Bd2 {[%emt 0:02:15]} 30. Re2 {[%emt 0:00:55]} Qa5 {[%emt 0:00:04]} 31. a3 {[%emt 0:01:43]} h5 {[%emt 0:01:22]} 32. h4 {[%emt 0:00:27]} Rd3 {[%emt 0:00:24]} 33. Rexd2 {[%emt 0:01:23]} Rxd2 {[%emt 0:00:43]} 34. Rc1 {[%emt 0:00:26]} Rd5 {[%emt 0:01:17]} 35. Qf4 {[%emt 0:00:13]} Re8 {[%emt 0:00:42]} 36. Bf6 {[%emt 0:00:24]} Kh7 {[%emt 0:00:22]} 37. g4 {[%emt 0:00:42]} Nd3 {[%emt 0:01:11]} 38. Bxd3 {[%emt 0:00:18]} Rxd3 {[%emt 0:00:04]} 39. Bg5 {[%emt 0:00:56]} Kg8 {[%emt 0:01:01]} 40. gxh5 {[%emt 0:00:00]} Qd5 {[%emt 0:00:00]} 41. hxg6 {[%emt 0:08:04]} fxg6 {[%emt 0:04:06]} 42. Qf6 {[%emt 0:04:48]} Qe4 {[%emt 0:02:55]} 43. Bh6 {[%emt 0:06:47]} Qg4+ {[%emt 0:03:45]} 44. Kf1 {[%emt 0:00:05]} Rd7 {[%emt 0:00:05]} 45. Qg5 {[%emt 0:09:52]} Rd1+ {[%emt 0:01:53]} 46. Rxd1 {[%emt 0:00:01]} Qxd1+ {[%emt 0:00:06]} 47. Kg2 {[%emt 0:00:04]} Qh5 {[%emt 0:00:05]} 48. Qf4 {[%emt 0:00:45]} Qf5 {[%emt 0:01:43]} 49. Qd4 {[%emt 0:00:40]} Qf7 {[%emt 0:02:39]} 50. a4 {[%emt 0:00:23]} Qb7+ {[%emt 0:00:24]} 51. Kh2 {[%emt 0:00:11]} a6 {[%emt 0:04:46]} 52. Bg5 {[%emt 0:00:56]} Rc8 {[%emt 0:05:24]} 53. Qd3 {[%emt 0:01:20]} Qf7 {[%emt 0:05:22]} 54. Bf6 {[%emt 0:00:35]} a5 {[%emt 0:00:57]} 55. Qa6 {[%emt 0:01:09]} Rc2 {[%emt 0:01:58]} 56. Qa8+ {[%emt 0:01:24]} Qf8 {[%emt 0:00:04]} 57. Qa7 {[%emt 0:00:08]} Ra2 {[%emt 0:00:58]} 58. Qd7 {[%emt 0:01:03]} Rxf2+ {[%emt 0:02:20]} 59. Kg3 {[%emt 0:00:07]} Rc2 {[%emt 0:01:32]} 60. Qd3 {[%emt 0:00:44]} Qc5 {[%emt 0:01:35]} 61. Qxg6+ {[%emt 0:01:25]} Kf8 {[%emt 0:00:04]} 62. Qg7+ {[%emt 0:00:17]} Ke8 {[%emt 0:00:03]} 63. Qg8+ {[%emt 0:00:08]} Kd7 {[%emt 0:00:04]} 64. Qf7+ {[%emt 0:00:13]} Kc8 {[%emt 0:00:33]} 65. Qxe6+ {[%emt 0:00:10]} Kc7 {[%emt 0:01:04]} 66. Qf7+ {[%emt 0:00:25]} Kb6 {[%emt 0:00:36]} 67. Bd8+ {[%emt 0:00:50]} Ka6 {[%emt 0:00:07]} 68. Qe6+ {[%emt 0:00:14]} Kb7 {[%emt 0:00:31]} 69. Qe7+ {[%emt 0:00:35]} Kc6 {[%emt 0:01:16]} 70. Qxc5+ {[%emt 0:01:34]} Rxc5 {[%emt 0:00:04]} 71. Bf6 {[%emt 0:00:22]} Rc3+ {[%emt 0:01:13]} 72. Kg4 {[%emt 0:00:28]} Kd5 {[%emt 0:00:41]} 73. h5 {[%emt 0:00:17]} Rc1 {[%emt 0:00:27]} 74. h6 {[%emt 0:00:19]} Rh1 {[%emt 0:00:17]} 75. Bh4 {[%emt 0:00:35]} Rg1+ {[%emt 0:00:19]} 76. Kh5 {[%emt 0:00:10]} 1-0

[Event "Chinese League Division-A 2024"]
[Site "Fuling Chongqing"]
[Date "2024.07.04"]
[Round "8.15"]
[White "Zhang, Lanlin"]
[Black "Lu, Miaoyi"]
[Result "1/2-1/2"]
[ECO "C56"]
[WhiteElo "2161"]
[BlackElo "2449"]
[Annotator "TA"]
[PlyCount "126"]
[EventDate "2024.06.28"]
[EventType "team-tourn"]
[EventCountry "CHN"]
[SourceTitle "playchess.com"]
[Source "ChessBase"]
[SourceQuality "1"]
[TimeControl "40/5400+30:1800+30"]

{[%evp 44,126,24,0,12,13,92,92,85,89,216,210,210,210,220,221,221,224,210,216,209,207,191,193,237,216,283,277,334,267,458,446,492,485,466,458,479,557,502,484,549,478,678,683,676,658,527,75,75,75,75,75,75,75,75,75,75,15,32,15,15,0,6,6,6,8,8,0,0,0,8,0,0,0,0,0,0,0,0,0,0,0,0,0,0]} 1. e4 {[%emt 0:00:02]} e5 {[%emt 0:00:01]} 2. Nf3 {[%emt 0:00:38]} Nc6 {[%emt 0:00:02]} 3. d4 {[%emt 0:02:49]} exd4 {[%emt 0:00:05]} 4. Bc4 {[%emt 0:00:03]} Nf6 {[%emt 0:00:06]} 5. O-O {[%emt 0:00:04]} Nxe4 {[%emt 0:00:04]} 6. Re1 {[%emt 0:00:03]} d5 {[%emt 0:00:05]} 7. Bxd5 {[%emt 0:00:02]} Qxd5 {[%emt 0:00:04]} 8. Nc3 {[%emt 0:00:03]} Qd7 {[%emt 0:00:06]} 9. Rxe4+ {[%emt 0:01:07]} Be7 {[%emt 0:00:02]} 10. Nxd4 {[%emt 0:17:50]} f5 {[%emt 0:00:02]} 11. Rf4 {[%emt 0:00:04]} O-O {[%emt 0:00:05]} 12. Nxc6 {[%emt 0:00:20]} Qxc6 {[%emt 0:00:03]} 13. Nd5 {[%emt 0:01:14]} Bd6 {[%emt 0:11:35]} 14. Rd4 {[%emt 0:02:34]} Be6 {[%emt 0:00:16]} 15. c4 {[%emt 0:22:08]} Rf7 {[%emt 0:27:26]} 16. Bf4 {[%emt 0:04:59]} Bf8 {[%emt 0:04:17]} 17. Qd2 {[%emt 0:01:38]} Rd7 {[%emt 0:09:27]} 18. Rd1 {[%emt 0:00:46]} Rad8 {[%emt 0:00:08]} 19. Bg5 {[%emt 0:00:04]} Re8 {[%emt 0:00:11]} 20. Bf4 {[%emt 0:00:04]} Red8 {[%emt 0:12:06]} 21. Bg5 {[%emt 0:02:59]} Re8 {[%emt 0:00:01]} 22. Bf4 {[%emt 0:00:05]} h6 {[%emt 0:00:03]} (22... Bxd5 $15 23. cxd5 Qb5) 23. h4 {[%emt 0:03:08]} Red8 {[%emt 0:01:34]} 24. Bxh6 {[%emt 0:04:22]} (24. b3 {simplifies} Bc5 25. Rd3 Bxd5 26. Rxd5 Rxd5 27. cxd5 Qd7 28. Qc2) 24... Bc5 {[%emt 0:10:56]} (24... Bxd5 $1 $11 {keeps the balance.} 25. Bg5 Bf3 26. Rxd7 Rxd7 27. Qxd7 Bxd1 28. Qxd1 Qxc4) 25. Rd3 $1 $16 {[%emt 0:02:18]} (25. Bg5 $2 Bxd4 26. Bxd8 Bxd5 (26... Qxc4 27. Qxd4 Rxd5 28. Qxc4 $14) 27. cxd5 (27. Qxd4 $2 Be6 $19) 27... Rxd5 (27... Qxd5 $2 28. Bg5 $19) 28. Qxd4 Rxd4 29. Rxd4 Qc1+ 30. Kh2 Qxb2 $19) 25... Bxd5 {[%emt 0:14:18]} (25... gxh6 $2 26. Nf6+ Kf8 27. Nxd7+ $18 (27. Qxh6+ Kf7 $18)) 26. Bg5 {[%emt 0:00:06]} Bb4 {[%emt 0:00:44]} (26... Bxf2+ $2 27. Kxf2 Bxg2 28. Bxd8 $18) (26... Re8 $16 27. cxd5 (27. Rxd5 Rxd5 28. Qxd5+ Qxd5 $14) 27... Qa4) 27. cxd5 $18 {[%emt 0:19:43]} (27. Qxb4 $6 Be4 28. Rxd7 Rxd7 29. Rxd7 Qxd7 $16) 27... Bxd2 {[%emt 0:01:21]} 28. dxc6 {[%emt 0:00:09]} Rxd3 {[%emt 0:00:17]} 29. Bxd8 {[%emt 0:00:03]} Rxd8 {[%emt 0:00:29]} 30. cxb7 {[%emt 0:00:04]} Rb8 {[%emt 0:00:19]} 31. Rxd2 {[%emt 0:00:04]} Rxb7 {[%emt 0:00:04]} 32. Rc2 {[%emt 0:01:08]} a5 {[%emt 0:05:55]} 33. Kh2 {[%emt 0:08:30]} a4 {[%emt 0:03:08]} 34. Kg3 {[%emt 0:00:25]} g6 {[%emt 0:01:13]} 35. a3 {[%emt 0:00:39]} Kf7 {[%emt 0:00:32]} 36. Kf4 {[%emt 0:00:04]} Kf6 $2 {[%emt 0:00:10]} (36... c5 {is a better defense.} 37. f3 (37. Rxc5 Rxb2 38. Rc7+ Kf6 $14) 37... Kf6) 37. f3 $18 {[%emt 0:01:37]} (37. Rc6+ Kf7 $14) 37... c5 {[%emt 0:00:36]} 38. Rxc5 {[%emt 0:01:27]} Rxb2 {[%emt 0:00:03]} 39. Rc6+ {[%emt 0:00:03]} Kf7 {[%emt 0:00:27]} 40. g4 $1 {[%emt 0:00:00]} Rb3 {[%emt 0:00:00]} 41. Rc7+ {[%emt 0:07:19]} (41. gxf5 gxf5 42. Rh6 Rxa3 $11) 41... Kf8 {[%emt 0:04:48]} 42. Ra7 {[%emt 0:02:57]} (42. gxf5 gxf5 43. Ra7 (43. Kxf5 Rxf3+ 44. Kg6 Rg3+ 45. Kh6 Rxa3 $11) 43... Rxa3 $11) 42... Rxa3 {[%emt 0:11:16]} (42... fxg4 $142 43. fxg4 Rb5 44. Rxa4 g5+ 45. hxg5 Rb7) 43. g5 $18 {[%emt 0:00:22]} (43. gxf5 gxf5 44. Rc7 (44. Kxf5 Rxf3+ 45. Kg6 a3 $11) (44. h5 Kg8 $11) 44... Kg8 $11) 43... Rb3 {[%emt 0:03:55]} 44. Rxa4 {[%emt 0:00:12]} Rb5 {[%emt 0:00:03]} 45. Ra7 $2 {[%emt 0:05:46]} (45. Ra8+ $18 Kg7 46. Ra7+ Kg8 47. h5 Rb4+ 48. Ke5 Rb5+ 49. Ke6 Rb6+ 50. Kd5) 45... Rb4+ $16 {[%emt 0:03:08]} 46. Ke5 {[%emt 0:02:55]} Rb5+ {[%emt 0:00:01]} 47. Ke6 {[%emt 0:00:19]} Rb6+ {[%emt 0:07:33] [#]} 48. Kd5 $1 {[%emt 0:00:06]} Rb5+ {[%emt 0:00:32] [#]} 49. Kc4 $1 {[%emt 0:00:14]} Rb1 {[%emt 0:00:52]} 50. Rd7 {[%emt 0:02:19]} (50. Ra6 $16 Kf7 51. Kd4) 50... Rh1 {[%emt 0:01:00]} 51. Kd5 {[%emt 0:00:56]} Rxh4 {[%emt 0:00:21]} 52. Ke5 {[%emt 0:01:57]} Ra4 {[%emt 0:00:03]} 53. Ke6 {[%emt 0:00:16]} Ra3 {[%emt 0:02:49]} 54. f4 {[%emt 0:00:22]} Ra4 {[%emt 0:00:59]} 55. Kf6 {[%emt 0:00:16]} Ra6+ {[%emt 0:00:06]} 56. Ke5 {[%emt 0:00:04]} Ra4 {[%emt 0:00:27]} 57. Rd4 {[%emt 0:00:40]} Rxd4 {[%emt 0:00:42]} 58. Kxd4 {[%emt 0:00:03]} Ke8 $1 {[%emt 0:00:06]} 59. Kc4 {[%emt 0:03:10]} (59. Ke5 $5 Ke7 $8 60. Kd4 $11) 59... Kd8 {[%emt 0:00:21]} 60. Kd5 {[%emt 0:04:02]} Kd7 $1 {[%emt 0:00:01]} 61. Ke5 {[%emt 0:00:15]} Ke7 {[%emt 0:00:02]} 62. Kd5 {[%emt 0:00:05]} Kd7 $1 {[%emt 0:00:04]} 63. Ke5 {[%emt 0:00:01]} Ke7 {[%emt 0:00:06]} 1/2-1/2